[Event "Titled Tuesday Blitz July 25 Early 2023"]
[White "Guevara Sanchez, Erick Marvin"]
[Black "Khouri, Ahmed Abbas"]
[WhiteFideId "6700136"]
[BlackFideId "9301518"]
[WhiteElo "2093"]
[BlackElo "2224"]
[Result "0-1"]
[Round "6"]
[TimeControl "180+2"]
[Date "2023.07.25"]
[WhiteClock "0:00:09"]
[BlackClock "0:00:44"]
[Board "216"]

1. e4 {[%clk 0:02:53]}  d5 {[%clk 0:02:58]} 2. exd5 {[%clk 0:02:52]}  Qxd5 {[%clk 0:02:59]} 3. Nc3 {[%clk 0:02:53]}  Qd6 {[%clk 0:03:00]} 4. d4 {[%clk 0:02:52]}  Nf6 {[%clk 0:03:00]} 5. g3 {[%clk 0:02:52]}  c6 {[%clk 0:03:00]} 6. Bg2 {[%clk 0:02:52]}  Bg4 {[%clk 0:03:00]} 7. Nge2 {[%clk 0:02:49]}  Nbd7 {[%clk 0:03:00]} 8. Bf4 {[%clk 0:02:49]}  Qb4 {[%clk 0:03:00]} 9. O-O {[%clk 0:02:47]}  e6 {[%clk 0:02:59]} 10. a3 {[%clk 0:02:44]}  Qa5 {[%clk 0:03:00]} 11. h3 {[%clk 0:02:40]}  Bh5 {[%clk 0:02:59]} 12. g4 {[%clk 0:02:37]}  Bg6 {[%clk 0:02:59]} 13. Re1 {[%clk 0:02:34]}  Be7 {[%clk 0:02:58]} 14. Nc1 {[%clk 0:02:32]}  O-O {[%clk 0:02:55]} 15. Nd3 {[%clk 0:02:29]}  Rfe8 {[%clk 0:02:47]} 16. Ne5 {[%clk 0:02:28]}  Rac8 {[%clk 0:02:42]} 17. Nxg6 {[%clk 0:02:27]}  hxg6 {[%clk 0:02:42]} 18. Qe2 {[%clk 0:02:15]}  Nd5 {[%clk 0:02:39]} 19. Nxd5 {[%clk 0:02:14]}  cxd5 {[%clk 0:02:40]} 20. c3 {[%clk 0:02:14]}  Nb6 {[%clk 0:02:38]} 21. g5 {[%clk 0:02:06]}  Nc4 {[%clk 0:02:36]} 22. h4 {[%clk 0:02:06]}  Bd6 {[%clk 0:02:32]} 23. Bxd6 {[%clk 0:02:04]}  Nxd6 {[%clk 0:02:33]} 24. h5 {[%clk 0:02:02]}  gxh5 {[%clk 0:02:33]} 25. Qxh5 {[%clk 0:02:00]}  g6 {[%clk 0:02:26]} 26. Qh3 {[%clk 0:01:54]}  Kg7 {[%clk 0:02:24]} 27. Qg3 {[%clk 0:01:49]}  Qc7 {[%clk 0:02:19]} 28. Qe5+ {[%clk 0:01:49]}  Kg8 {[%clk 0:02:19]} 29. Qf6 {[%clk 0:01:32]}  Qd8 {[%clk 0:02:00]} 30. Qe5 {[%clk 0:01:29]}  Nf5 {[%clk 0:01:55]} 31. f4 {[%clk 0:01:24]}  Qc7 {[%clk 0:01:53]} 32. Bh3 {[%clk 0:01:20]}  Qxe5 {[%clk 0:01:51]} 33. Rxe5 {[%clk 0:01:20]}  Nd6 {[%clk 0:01:49]} 34. Bf1 {[%clk 0:01:14]}  Rc6 {[%clk 0:01:34]} 35. Bd3 {[%clk 0:01:13]}  Rb6 {[%clk 0:01:34]} 36. Rb1 {[%clk 0:01:02]}  Rc8 {[%clk 0:01:34]} 37. Kf2 {[%clk 0:00:58]}  Kg7 {[%clk 0:01:17]} 38. Ke2 {[%clk 0:00:56]}  Nc4 {[%clk 0:01:09]} 39. Bxc4 {[%clk 0:00:55]}  Rxc4 {[%clk 0:01:09]} 40. Kd2 {[%clk 0:00:45]}  f6 {[%clk 0:01:10]} 41. gxf6+ {[%clk 0:00:44]}  Kxf6 {[%clk 0:01:10]} 42. Re2 {[%clk 0:00:44]}  Kf5 {[%clk 0:01:10]} 43. Rf2 {[%clk 0:00:42]}  Ke4 {[%clk 0:01:06]} 44. Re1+ {[%clk 0:00:34]}  Kf5 {[%clk 0:01:06]} 45. Re5+ {[%clk 0:00:35]}  Kf6 {[%clk 0:01:06]} 46. Kc2 {[%clk 0:00:35]}  Rbc6 {[%clk 0:01:04]} 47. Kd3 {[%clk 0:00:30]}  b5 {[%clk 0:01:05]} 48. Rh2 {[%clk 0:00:23]}  a5 {[%clk 0:01:02]} 49. Rh8 {[%clk 0:00:20]}  b4 {[%clk 0:01:02]} 50. axb4 {[%clk 0:00:20]}  axb4 {[%clk 0:01:03]} 51. cxb4 {[%clk 0:00:19]}  Rxb4 {[%clk 0:01:04]} 52. Rf8+ {[%clk 0:00:17]}  Kg7 {[%clk 0:01:03]} 53. Re8 {[%clk 0:00:17]}  Rb3+ {[%clk 0:01:02]} 54. Ke2 {[%clk 0:00:16]}  Rxb2+ {[%clk 0:01:02]} 55. Kf3 {[%clk 0:00:17]}  Kf7 {[%clk 0:00:55]} 56. Rd8 {[%clk 0:00:16]}  Rc3+ {[%clk 0:00:53]} 57. Kg4 {[%clk 0:00:15]}  Rg2+ {[%clk 0:00:53]} 58. Kh4 {[%clk 0:00:15]}  Rc1 {[%clk 0:00:53]} 59. Kh3 {[%clk 0:00:15]}  Rcg1 {[%clk 0:00:50]} 60. Rd7+ {[%clk 0:00:12]}  Kf6 {[%clk 0:00:49]} 61. Rd8 {[%clk 0:00:11]}  Rg3+ {[%clk 0:00:47]} 62. Kh2 {[%clk 0:00:11]}  R1g2+ {[%clk 0:00:47]} 63. Kh1 {[%clk 0:00:11]}  Rd2 {[%clk 0:00:47]} 64. Re1 {[%clk 0:00:10]}  Rxd4 {[%clk 0:00:44]} 65. Rf8+ {[%clk 0:00:10]}  Kg7 {[%clk 0:00:44]} 66. Re8 {[%clk 0:00:09]}  Rxf4 {[%clk 0:00:44]} 67. R8xe6 {[%clk 0:00:09]}  Rh4# {[%clk 0:00:44]} 0-1


[Site "https://www.chess.com"]

[Event "Titled Tuesday Blitz July 25 Early 2023"]
[White "KSho99"]
[Black "Graham, Nathaniel"]
[BlackFideId "2007983"]
[WhiteElo "2213"]
[BlackElo "1974"]
[Result "0-1"]
[Round "6"]
[TimeControl "180+2"]
[Date "2023.07.25"]
[WhiteClock "0:00:00"]
[BlackClock "0:00:13"]
[Board "217"]

1. d4 {[%clk 0:03:00]}  d5 {[%clk 0:02:59]} 2. Nc3 {[%clk 0:03:00]}  Nf6 {[%clk 0:02:58]} 3. Bf4 {[%clk 0:03:00]}  c5 {[%clk 0:02:59]} 4. e4 {[%clk 0:03:00]}  Nxe4 {[%clk 0:02:54]} 5. Nxe4 {[%clk 0:02:57]}  dxe4 {[%clk 0:02:55]} 6. dxc5 {[%clk 0:02:58]}  Qa5+ {[%clk 0:02:50]} 7. c3 {[%clk 0:02:55]}  Qxc5 {[%clk 0:02:49]} 8. Qa4+ {[%clk 0:02:55]}  Bd7 {[%clk 0:02:35]} 9. Qxe4 {[%clk 0:02:54]}  Bc6 {[%clk 0:02:35]} 10. Qe3 {[%clk 0:02:49]}  Nd7 {[%clk 0:02:29]} 11. Nf3 {[%clk 0:02:40]}  Qxe3+ {[%clk 0:02:14]} 12. Bxe3 {[%clk 0:02:40]}  e5 {[%clk 0:02:10]} 13. Be2 {[%clk 0:02:30]}  Be7 {[%clk 0:02:05]} 14. O-O {[%clk 0:02:28]}  O-O {[%clk 0:02:04]} 15. Rfd1 {[%clk 0:02:25]}  Rfd8 {[%clk 0:02:03]} 16. a4 {[%clk 0:02:25]}  f6 {[%clk 0:01:54]} 17. a5 {[%clk 0:01:46]}  Nc5 {[%clk 0:01:35]} 18. b4 {[%clk 0:01:28]}  Ne4 {[%clk 0:01:17]} 19. Rdc1 {[%clk 0:00:46]}  a6 {[%clk 0:01:01]} 20. Bb6 {[%clk 0:00:45]}  Rdc8 {[%clk 0:00:53]} 21. Bc4+ {[%clk 0:00:42]}  Kf8 {[%clk 0:00:51]} 22. Be6 {[%clk 0:00:41]}  Re8 {[%clk 0:00:47]} 23. Bb3 {[%clk 0:00:28]}  Rac8 {[%clk 0:00:38]} 24. Rc2 {[%clk 0:00:10]}  Bb5 {[%clk 0:00:28]} 25. Rac1 {[%clk 0:00:09]}  Bd3 {[%clk 0:00:25]} 26. Ra2 {[%clk 0:00:09]}  Nxc3 {[%clk 0:00:22]} 27. Rxc3 {[%clk 0:00:04]}  Rxc3 {[%clk 0:00:20]} 28. Bd1 {[%clk 0:00:03]}  Rc1 {[%clk 0:00:14]} 29. Rd2 {[%clk 0:00:00]}  Bc2 {[%clk 0:00:13]} 0-1


[Site "https://www.chess.com"]

[Event "Titled Tuesday Blitz July 25 Early 2023"]
[White "Guerra Tulcan, Lenin"]
[Black "Hartikainen, Jarmo"]
[WhiteFideId "3601382"]
[BlackFideId "503134"]
[WhiteElo "2574"]
[BlackElo "2088"]
[Result "1-0"]
[Round "6"]
[TimeControl "180+2"]
[Date "2023.07.25"]
[WhiteClock "0:00:22"]
[BlackClock "0:00:00"]
[Board "218"]

1. e4 {[%clk 0:03:00]}  c5 {[%clk 0:02:59]} 2. Nf3 {[%clk 0:03:00]}  Nc6 {[%clk 0:03:00]} 3. d4 {[%clk 0:03:00]}  cxd4 {[%clk 0:03:00]} 4. Nxd4 {[%clk 0:03:01]}  Nf6 {[%clk 0:03:01]} 5. Nc3 {[%clk 0:03:01]}  d6 {[%clk 0:03:01]} 6. Be2 {[%clk 0:03:00]}  e5 {[%clk 0:03:01]} 7. Nf3 {[%clk 0:02:59]}  Be7 {[%clk 0:03:01]} 8. O-O {[%clk 0:02:58]}  Be6 {[%clk 0:03:01]} 9. b3 {[%clk 0:02:59]}  O-O {[%clk 0:03:00]} 10. Bb2 {[%clk 0:02:59]}  Rc8 {[%clk 0:02:51]} 11. Re1 {[%clk 0:02:59]}  a6 {[%clk 0:02:40]} 12. Bf1 {[%clk 0:02:59]}  Qc7 {[%clk 0:02:19]} 13. Nd5 {[%clk 0:02:57]}  Bxd5 {[%clk 0:02:15]} 14. exd5 {[%clk 0:02:55]}  Nb8 {[%clk 0:02:14]} 15. c4 {[%clk 0:02:53]}  Nbd7 {[%clk 0:02:08]} 16. Nd4 {[%clk 0:02:49]}  g6 {[%clk 0:02:03]} 17. f4 {[%clk 0:02:46]}  Rfe8 {[%clk 0:02:00]} 18. Nf3 {[%clk 0:02:45]}  exf4 {[%clk 0:01:28]} 19. Qd2 {[%clk 0:02:44]}  Bf8 {[%clk 0:01:18]} 20. Qxf4 {[%clk 0:02:43]}  Bg7 {[%clk 0:01:17]} 21. Bd4 {[%clk 0:02:33]}  b5 {[%clk 0:01:11]} 22. Ng5 {[%clk 0:02:30]}  bxc4 {[%clk 0:01:05]} 23. Bxc4 {[%clk 0:02:29]}  Ne5 {[%clk 0:00:56]} 24. Bxe5 {[%clk 0:02:24]}  dxe5 {[%clk 0:00:56]} 25. Qh4 {[%clk 0:02:24]}  Qd6 {[%clk 0:00:51]} 26. Rf1 {[%clk 0:02:21]}  h6 {[%clk 0:00:49]} 27. Ne4 {[%clk 0:01:45]}  Nxe4 {[%clk 0:00:45]} 28. Qxe4 {[%clk 0:01:46]}  f5 {[%clk 0:00:44]} 29. Qe2 {[%clk 0:01:46]}  e4 {[%clk 0:00:39]} 30. Rad1 {[%clk 0:01:41]}  a5 {[%clk 0:00:38]} 31. Bb5 {[%clk 0:01:41]}  Re5 {[%clk 0:00:34]} 32. Bc6 {[%clk 0:01:42]}  Re7 {[%clk 0:00:14]} 33. Qa6 {[%clk 0:01:40]}  Rcc7 {[%clk 0:00:09]} 34. Qxa5 {[%clk 0:01:39]}  Be5 {[%clk 0:00:09]} 35. h3 {[%clk 0:01:38]}  f4 {[%clk 0:00:10]} 36. Kh1 {[%clk 0:01:23]}  f3 {[%clk 0:00:10]} 37. gxf3 {[%clk 0:01:21]}  exf3 {[%clk 0:00:10]} 38. Rxf3 {[%clk 0:01:21]}  Rf7 {[%clk 0:00:09]} 39. Qa8+ {[%clk 0:01:14]}  Kg7 {[%clk 0:00:08]} 40. Rdf1 {[%clk 0:01:14]}  Rxf3 {[%clk 0:00:04]} 41. Rxf3 {[%clk 0:01:14]}  Bf6 {[%clk 0:00:02]} 42. Qa4 {[%clk 0:01:03]}  Re7 {[%clk 0:00:02]} 43. Qg4 {[%clk 0:00:51]}  h5 {[%clk 0:00:02]} 44. Qg2 {[%clk 0:00:48]}  Qe5 {[%clk 0:00:02]} 45. Qf2 {[%clk 0:00:41]}  Qe1+ {[%clk 0:00:01]} 46. Qxe1 {[%clk 0:00:40]}  Rxe1+ {[%clk 0:00:02]} 47. Kg2 {[%clk 0:00:41]}  Re2+ {[%clk 0:00:02]} 48. Rf2 {[%clk 0:00:41]}  Rxf2+ {[%clk 0:00:02]} 49. Kxf2 {[%clk 0:00:41]}  Be7 {[%clk 0:00:03]} 50. Ke3 {[%clk 0:00:38]}  Bc5+ {[%clk 0:00:03]} 51. Ke4 {[%clk 0:00:38]}  Kf6 {[%clk 0:00:04]} 52. Be8 {[%clk 0:00:38]}  h4 {[%clk 0:00:03]} 53. Bd7 {[%clk 0:00:37]}  g5 {[%clk 0:00:03]} 54. Kd3 {[%clk 0:00:36]}  Ke7 {[%clk 0:00:03]} 55. Bg4 {[%clk 0:00:35]}  Kd6 {[%clk 0:00:03]} 56. Kc4 {[%clk 0:00:35]}  Ba3 {[%clk 0:00:03]} 57. b4 {[%clk 0:00:35]}  Bc1 {[%clk 0:00:03]} 58. a4 {[%clk 0:00:34]}  Be3 {[%clk 0:00:03]} 59. Be6 {[%clk 0:00:31]}  Kc7 {[%clk 0:00:02]} 60. a5 {[%clk 0:00:29]}  Kb7 {[%clk 0:00:02]} 61. Kb5 {[%clk 0:00:27]}  Bf2 {[%clk 0:00:02]} 62. Ka4 {[%clk 0:00:24]}  Kc7 {[%clk 0:00:02]} 63. b5 {[%clk 0:00:23]}  Kb7 {[%clk 0:00:00]} 64. b6 {[%clk 0:00:22]} 1-0


[Site "https://www.chess.com"]

[Event "Titled Tuesday Blitz July 25 Early 2023"]
[White "Winkels, Marcel"]
[Black "Vafin, Ayrat"]
[WhiteFideId "1003887"]
[BlackFideId "4146530"]
[WhiteElo "2041"]
[BlackElo "2357"]
[Result "1-0"]
[Round "6"]
[TimeControl "180+2"]
[Date "2023.07.25"]
[WhiteClock "0:00:17"]
[BlackClock "0:00:00"]
[Board "219"]

1. e4 {[%clk 0:03:00]}  c6 {[%clk 0:03:00]} 2. d4 {[%clk 0:03:00]}  d5 {[%clk 0:03:00]} 3. exd5 {[%clk 0:02:58]}  cxd5 {[%clk 0:03:01]} 4. c3 {[%clk 0:02:59]}  Nc6 {[%clk 0:03:00]} 5. Bd3 {[%clk 0:02:58]}  Nf6 {[%clk 0:03:01]} 6. Bf4 {[%clk 0:02:57]}  g6 {[%clk 0:02:59]} 7. Nf3 {[%clk 0:02:56]}  Bg4 {[%clk 0:02:59]} 8. h3 {[%clk 0:02:57]}  Bf5 {[%clk 0:02:59]} 9. O-O {[%clk 0:02:48]}  Bxd3 {[%clk 0:02:59]} 10. Qxd3 {[%clk 0:02:47]}  Bg7 {[%clk 0:02:59]} 11. Nbd2 {[%clk 0:02:46]}  O-O {[%clk 0:02:59]} 12. Rfe1 {[%clk 0:02:38]}  e6 {[%clk 0:02:59]} 13. b4 {[%clk 0:02:32]}  Re8 {[%clk 0:02:50]} 14. Ne5 {[%clk 0:02:27]}  Nh5 {[%clk 0:02:13]} 15. Bh2 {[%clk 0:02:25]}  Ne7 {[%clk 0:01:56]} 16. a4 {[%clk 0:02:15]}  a6 {[%clk 0:01:54]} 17. a5 {[%clk 0:02:13]}  Nf5 {[%clk 0:01:51]} 18. Nb3 {[%clk 0:02:09]}  Nf6 {[%clk 0:01:50]} 19. Nc5 {[%clk 0:02:08]}  Qc8 {[%clk 0:01:36]} 20. Reb1 {[%clk 0:01:57]}  Bf8 {[%clk 0:01:36]} 21. g4 {[%clk 0:01:43]}  Nd6 {[%clk 0:01:21]} 22. Na4 {[%clk 0:01:30]}  Nfe4 {[%clk 0:01:14]} 23. f3 {[%clk 0:01:25]}  Nf6 {[%clk 0:01:08]} 24. Nb6 {[%clk 0:01:24]}  Qc7 {[%clk 0:00:51]} 25. Nxa8 {[%clk 0:01:21]}  Rxa8 {[%clk 0:00:52]} 26. Rc1 {[%clk 0:01:12]}  Qd8 {[%clk 0:00:45]} 27. Rab1 {[%clk 0:01:00]}  Rc8 {[%clk 0:00:43]} 28. Bg3 {[%clk 0:00:56]}  Bg7 {[%clk 0:00:41]} 29. Qe2 {[%clk 0:00:49]}  Nfe8 {[%clk 0:00:39]} 30. Nd3 {[%clk 0:00:47]}  Nc4 {[%clk 0:00:38]} 31. Nc5 {[%clk 0:00:46]}  Qe7 {[%clk 0:00:27]} 32. b5 {[%clk 0:00:45]}  axb5 {[%clk 0:00:17]} 33. Rxb5 {[%clk 0:00:44]}  Bf8 {[%clk 0:00:10]} 34. Rxb7 {[%clk 0:00:43]}  Qd8 {[%clk 0:00:07]} 35. a6 {[%clk 0:00:22]}  Na5 {[%clk 0:00:05]} 36. a7 {[%clk 0:00:19]}  Nxb7 {[%clk 0:00:02]} 37. Nxb7 {[%clk 0:00:19]}  Qd7 {[%clk 0:00:02]} 38. Rb1 {[%clk 0:00:18]}  Ra8 {[%clk 0:00:00]} 39. Qa2 {[%clk 0:00:17]} 1-0


[Site "https://www.chess.com"]

[Event "Titled Tuesday Blitz July 25 Early 2023"]
[White "Vachier-Lagrave, Maxime"]
[Black "Bortnyk, Olexandr"]
[WhiteFideId "623539"]
[BlackFideId "14120828"]
[WhiteElo "3133"]
[BlackElo "3058"]
[Result "1-0"]
[Round "7"]
[TimeControl "180+2"]
[Date "2023.07.25"]
[WhiteClock "0:00:53"]
[BlackClock "0:00:00"]
[Board "2"]

1. d4 {[%clk 0:03:00]}  Nf6 {[%clk 0:02:58]} 2. c4 {[%clk 0:03:00]}  b6 {[%clk 0:02:58]} 3. Nc3 {[%clk 0:02:58]}  Bb7 {[%clk 0:02:59]} 4. f3 {[%clk 0:02:58]}  Nc6 {[%clk 0:02:54]} 5. e4 {[%clk 0:02:57]}  e5 {[%clk 0:02:52]} 6. dxe5 {[%clk 0:02:40]}  Nxe5 {[%clk 0:02:53]} 7. Be3 {[%clk 0:02:40]}  Bc5 {[%clk 0:02:47]} 8. Qd2 {[%clk 0:02:38]}  O-O {[%clk 0:02:43]} 9. Nh3 {[%clk 0:02:32]}  Re8 {[%clk 0:02:35]} 10. Be2 {[%clk 0:02:31]}  c6 {[%clk 0:02:12]} 11. Bxc5 {[%clk 0:02:06]}  bxc5 {[%clk 0:02:13]} 12. O-O-O {[%clk 0:02:06]}  d5 {[%clk 0:02:10]} 13. f4 {[%clk 0:01:51]}  Nxc4 {[%clk 0:01:39]} 14. Bxc4 {[%clk 0:01:50]}  dxc4 {[%clk 0:01:39]} 15. Qxd8 {[%clk 0:01:51]}  Raxd8 {[%clk 0:01:39]} 16. Rxd8 {[%clk 0:01:51]}  Rxd8 {[%clk 0:01:40]} 17. Rd1 {[%clk 0:01:51]}  Rd4 {[%clk 0:01:39]} 18. Ng5 {[%clk 0:01:43]}  Bc8 {[%clk 0:01:32]} 19. Nf3 {[%clk 0:01:38]}  Rxd1+ {[%clk 0:01:26]} 20. Kxd1 {[%clk 0:01:39]}  Bg4 {[%clk 0:01:26]} 21. Ke2 {[%clk 0:01:39]}  Kf8 {[%clk 0:01:24]} 22. Ke3 {[%clk 0:01:39]}  Bxf3 {[%clk 0:01:21]} 23. Kxf3 {[%clk 0:01:40]}  Ke7 {[%clk 0:01:21]} 24. Nd1 {[%clk 0:01:37]}  Nd7 {[%clk 0:01:20]} 25. Ne3 {[%clk 0:01:37]}  Nb6 {[%clk 0:01:21]} 26. e5 {[%clk 0:01:37]}  f6 {[%clk 0:01:06]} 27. exf6+ {[%clk 0:01:33]}  gxf6 {[%clk 0:01:02]} 28. Ke4 {[%clk 0:01:27]}  Ke6 {[%clk 0:01:00]} 29. g4 {[%clk 0:01:21]}  a6 {[%clk 0:00:53]} 30. h4 {[%clk 0:01:18]}  h6 {[%clk 0:00:35]} 31. a3 {[%clk 0:01:07]}  a5 {[%clk 0:00:25]} 32. h5 {[%clk 0:00:59]}  Kf7 {[%clk 0:00:09]} 33. Nf5 {[%clk 0:00:55]}  Ke6 {[%clk 0:00:06]} 34. Nxh6 {[%clk 0:00:53]}  Na4 {[%clk 0:00:07]} 35. Nf5 {[%clk 0:00:52]}  Nxb2 {[%clk 0:00:07]} 36. h6 {[%clk 0:00:52]}  c3 {[%clk 0:00:02]} 37. h7 {[%clk 0:00:53]}  c2 {[%clk 0:00:00]} 38. h8=Q {[%clk 0:00:53]} 1-0


[Site "https://www.chess.com"]

[Event "Titled Tuesday Blitz July 25 Early 2023"]
[White "Bluebaum, Matthias"]
[Black "Martinez Alcantara, Jose Eduardo"]
[WhiteFideId "24651516"]
[BlackFideId "3805662"]
[WhiteElo "3057"]
[BlackElo "2994"]
[Result "1-0"]
[Round "7"]
[TimeControl "180+2"]
[Date "2023.07.25"]
[WhiteClock "0:00:39"]
[BlackClock "0:00:01"]
[Board "3"]

1. d4 {[%clk 0:03:00]}  d5 {[%clk 0:02:56]} 2. c4 {[%clk 0:03:01]}  dxc4 {[%clk 0:02:57]} 3. e4 {[%clk 0:03:01]}  e5 {[%clk 0:02:57]} 4. Nf3 {[%clk 0:03:02]}  Bb4+ {[%clk 0:02:57]} 5. Bd2 {[%clk 0:03:02]}  Bxd2+ {[%clk 0:02:57]} 6. Qxd2 {[%clk 0:03:03]}  exd4 {[%clk 0:02:56]} 7. Nxd4 {[%clk 0:03:04]}  Nf6 {[%clk 0:02:49]} 8. Nc3 {[%clk 0:03:04]}  O-O {[%clk 0:02:46]} 9. O-O-O {[%clk 0:03:04]}  c5 {[%clk 0:02:40]} 10. Ndb5 {[%clk 0:03:02]}  Qxd2+ {[%clk 0:02:28]} 11. Rxd2 {[%clk 0:03:03]}  Nc6 {[%clk 0:02:18]} 12. Bxc4 {[%clk 0:02:55]}  a6 {[%clk 0:02:18]} 13. Nd6 {[%clk 0:02:50]}  b5 {[%clk 0:02:16]} 14. Bd5 {[%clk 0:02:27]}  Bd7 {[%clk 0:02:14]} 15. f4 {[%clk 0:01:56]}  Ra7 {[%clk 0:02:04]} 16. Bxc6 {[%clk 0:01:43]}  Bxc6 {[%clk 0:02:03]} 17. e5 {[%clk 0:01:44]}  Ng4 {[%clk 0:01:50]} 18. Nd5 {[%clk 0:01:28]}  h5 {[%clk 0:01:26]} 19. h3 {[%clk 0:01:26]}  Nh6 {[%clk 0:01:26]} 20. Rg1 {[%clk 0:01:23]}  h4 {[%clk 0:01:25]} 21. g4 {[%clk 0:01:21]}  hxg3 {[%clk 0:01:18]} 22. Rxg3 {[%clk 0:01:21]}  Kh8 {[%clk 0:01:12]} 23. f5 {[%clk 0:01:08]}  Rd7 {[%clk 0:01:10]} 24. f6 {[%clk 0:01:03]}  g6 {[%clk 0:01:11]} 25. Ne7 {[%clk 0:01:00]}  Rc7 {[%clk 0:01:03]} 26. e6 {[%clk 0:00:52]}  Kh7 {[%clk 0:00:57]} 27. exf7 {[%clk 0:00:48]}  Nxf7 {[%clk 0:00:47]} 28. Rxg6 {[%clk 0:00:48]}  Ne5 {[%clk 0:00:18]} 29. Rg7+ {[%clk 0:00:45]}  Kh8 {[%clk 0:00:18]} 30. Ng6+ {[%clk 0:00:42]}  Nxg6 {[%clk 0:00:18]} 31. Rxc7 {[%clk 0:00:43]}  Bf3 {[%clk 0:00:18]} 32. Nf7+ {[%clk 0:00:39]}  Kg8 {[%clk 0:00:19]} 33. Ng5 {[%clk 0:00:39]}  Ne5 {[%clk 0:00:17]} 34. Re7 {[%clk 0:00:29]}  Rxf6 {[%clk 0:00:13]} 35. Rd8+ {[%clk 0:00:28]}  Rf8 {[%clk 0:00:14]} 36. Rxf8+ {[%clk 0:00:29]}  Kxf8 {[%clk 0:00:15]} 37. Rxe5 {[%clk 0:00:29]}  Bc6 {[%clk 0:00:15]} 38. Re6 {[%clk 0:00:30]}  Bd7 {[%clk 0:00:16]} 39. Rxa6 {[%clk 0:00:30]}  b4 {[%clk 0:00:17]} 40. Ne6+ {[%clk 0:00:30]}  Ke7 {[%clk 0:00:18]} 41. Nxc5 {[%clk 0:00:30]}  Bxh3 {[%clk 0:00:19]} 42. a3 {[%clk 0:00:30]}  b3 {[%clk 0:00:20]} 43. Nxb3 {[%clk 0:00:31]}  Bf1 {[%clk 0:00:21]} 44. Ra5 {[%clk 0:00:31]}  Bc4 {[%clk 0:00:21]} 45. Nd2 {[%clk 0:00:31]}  Bf7 {[%clk 0:00:21]} 46. b4 {[%clk 0:00:32]}  Kd6 {[%clk 0:00:22]} 47. Kb2 {[%clk 0:00:33]}  Kc7 {[%clk 0:00:23]} 48. Kc3 {[%clk 0:00:34]}  Kb6 {[%clk 0:00:24]} 49. Rc5 {[%clk 0:00:34]}  Be8 {[%clk 0:00:25]} 50. Nc4+ {[%clk 0:00:34]}  Ka7 {[%clk 0:00:25]} 51. Ra5+ {[%clk 0:00:34]}  Kb8 {[%clk 0:00:26]} 52. Ne5 {[%clk 0:00:34]}  Bg6 {[%clk 0:00:27]} 53. Nxg6 {[%clk 0:00:34]}  Kc7 {[%clk 0:00:27]} 54. Rc5+ {[%clk 0:00:34]}  Kb8 {[%clk 0:00:28]} 55. a4 {[%clk 0:00:35]}  Kb7 {[%clk 0:00:29]} 56. Kc4 {[%clk 0:00:35]}  Ka8 {[%clk 0:00:30]} 57. Kb5 {[%clk 0:00:36]}  Ka7 {[%clk 0:00:31]} 58. Ne5 {[%clk 0:00:37]}  Kb8 {[%clk 0:00:32]} 59. a5 {[%clk 0:00:38]}  Kb7 {[%clk 0:00:33]} 60. a6+ {[%clk 0:00:38]}  Kb8 {[%clk 0:00:34]} 61. Kb6 {[%clk 0:00:38]}  Ka8 {[%clk 0:00:01]} 62. Rc8# {[%clk 0:00:39]} 1-0


[Site "https://www.chess.com"]

[Event "Titled Tuesday Blitz July 25 Early 2023"]
[White "So, Wesley"]
[Black "Hovhannisyan, Robert"]
[WhiteFideId "5202213"]
[BlackFideId "13302507"]
[WhiteElo "3097"]
[BlackElo "2972"]
[Result "1-0"]
[Round "7"]
[TimeControl "180+2"]
[Date "2023.07.25"]
[WhiteClock "0:00:21"]
[BlackClock "0:00:00"]
[Board "5"]

1. e3 {[%clk 0:03:00]}  e5 {[%clk 0:02:59]} 2. d4 {[%clk 0:03:01]}  exd4 {[%clk 0:02:56]} 3. exd4 {[%clk 0:03:02]}  d5 {[%clk 0:02:56]} 4. Nf3 {[%clk 0:02:58]}  Nf6 {[%clk 0:02:54]} 5. Bd3 {[%clk 0:02:59]}  Bd6 {[%clk 0:02:55]} 6. Qe2+ {[%clk 0:02:59]}  Qe7 {[%clk 0:02:54]} 7. Qxe7+ {[%clk 0:02:59]}  Kxe7 {[%clk 0:02:53]} 8. O-O {[%clk 0:02:59]}  Re8 {[%clk 0:02:51]} 9. Re1+ {[%clk 0:02:59]}  Kf8 {[%clk 0:02:51]} 10. Rxe8+ {[%clk 0:03:00]}  Kxe8 {[%clk 0:02:51]} 11. Nc3 {[%clk 0:02:58]}  c6 {[%clk 0:02:39]} 12. Ne5 {[%clk 0:02:56]}  Nbd7 {[%clk 0:02:16]} 13. Bf4 {[%clk 0:02:53]}  Nh5 {[%clk 0:01:58]} 14. Bd2 {[%clk 0:02:43]}  Kf8 {[%clk 0:01:48]} 15. Re1 {[%clk 0:02:37]}  Nhf6 {[%clk 0:01:38]} 16. h3 {[%clk 0:02:34]}  Nb6 {[%clk 0:01:24]} 17. g4 {[%clk 0:02:33]}  h6 {[%clk 0:01:20]} 18. a3 {[%clk 0:02:26]}  Be6 {[%clk 0:01:15]} 19. Bf4 {[%clk 0:02:24]}  Rd8 {[%clk 0:01:07]} 20. Kg2 {[%clk 0:02:22]}  Nc4 {[%clk 0:01:01]} 21. Bc1 {[%clk 0:02:13]}  g5 {[%clk 0:00:53]} 22. f4 {[%clk 0:02:11]}  gxf4 {[%clk 0:00:46]} 23. Kf3 {[%clk 0:02:00]}  Kg7 {[%clk 0:00:31]} 24. a4 {[%clk 0:01:38]}  Nd7 {[%clk 0:00:23]} 25. Nxd7 {[%clk 0:01:36]}  Rxd7 {[%clk 0:00:21]} 26. Re2 {[%clk 0:01:29]}  Rd8 {[%clk 0:00:19]} 27. Nd1 {[%clk 0:01:20]}  a5 {[%clk 0:00:18]} 28. c3 {[%clk 0:01:15]}  Rh8 {[%clk 0:00:16]} 29. b3 {[%clk 0:01:13]}  Ne3 {[%clk 0:00:16]} 30. Nxe3 {[%clk 0:01:13]}  fxe3 {[%clk 0:00:17]} 31. Rg2 {[%clk 0:01:03]}  Kf8 {[%clk 0:00:16]} 32. h4 {[%clk 0:00:53]}  h5 {[%clk 0:00:16]} 33. g5 {[%clk 0:00:54]}  Bg4+ {[%clk 0:00:14]} 34. Kxe3 {[%clk 0:00:51]}  Kg7 {[%clk 0:00:14]} 35. Kf2 {[%clk 0:00:48]}  Re8 {[%clk 0:00:14]} 36. Bd2 {[%clk 0:00:41]}  c5 {[%clk 0:00:13]} 37. Be3 {[%clk 0:00:36]}  b6 {[%clk 0:00:13]} 38. Rg1 {[%clk 0:00:35]}  Bh2 {[%clk 0:00:11]} 39. Re1 {[%clk 0:00:33]}  Bd6 {[%clk 0:00:09]} 40. dxc5 {[%clk 0:00:33]}  bxc5 {[%clk 0:00:07]} 41. Bd4+ {[%clk 0:00:32]}  cxd4 {[%clk 0:00:04]} 42. Rxe8 {[%clk 0:00:32]}  dxc3 {[%clk 0:00:05]} 43. Rd8 {[%clk 0:00:29]}  Bc5+ {[%clk 0:00:04]} 44. Ke1 {[%clk 0:00:24]}  d4 {[%clk 0:00:04]} 45. Rd5 {[%clk 0:00:21]}  Bb4 {[%clk 0:00:00]} 46. Bc2 {[%clk 0:00:21]} 1-0


[Site "https://www.chess.com"]